{"text_format":"1","workbook":"xlsx","n_sheets":6,"sheets":["Tabulka","FINDER","Tabulka (2)","FINDER (2)","Tabulka (3)","FINDER (3)"],"not_rendered":{"charts":0,"images":0,"macros":1,"external_links":0,"defined_names":11,"comments":0,"pivot_tables":0},"unopened":[],"bounds":{"document_bytes":16777216,"sheet_cells":100000,"rows_first":2000,"rows_last":500,"rows_between":2000,"halvings":0,"cell_chars":16384,"cell_head_chars":4096},"cells_cut":0,"cells_raw":0,"read":"whole","date_system":"1900"}

{"sheet":"Tabulka","index":0,"n_rows":93,"n_cols":3,"rows_kept":93,"cut":false,"hidden":false,"merged":[]}
["Description","Number","Other Information"]
["ahoj cau ahoj dobry den nazdar",45,"KJ"]
["pes kocka ahoj maslo voda",889,"JJ"]
["stul kocka postel ",541,"AD"]
["ahoj cau ahoj dobry den nazdar"]
["pes kocka ahoj maslo voda"]
["stul kocka postel "]
["ahoj cau ahoj dobry den nazdar"]
["pes kocka ahoj maslo voda"]
["stul kocka postel "]
["ahoj cau ahoj dobry den nazdar"]
["pes kocka ahoj maslo voda"]
["stul kocka postel "]
["ahoj cau ahoj dobry den nazdar"]
["pes kocka ahoj maslo voda"]
["stul kocka postel "]
["ahoj cau ahoj dobry den nazdar"]
["pes kocka ahoj maslo voda"]
["stul kocka postel "]
["ahoj cau ahoj dobry den nazdar"]
["pes kocka ahoj maslo voda"]
["stul kocka postel "]
["ahoj cau ahoj dobry den nazdar"]
["pes kocka ahoj maslo voda"]
["stul kocka postel "]
["ahoj cau ahoj dobry den nazdar"]
["pes kocka ahoj maslo voda"]
["stul kocka postel "]
["ahoj cau ahoj dobry den nazdar"]
["pes kocka ahoj maslo voda"]
["stul kocka postel "]
["ahoj cau ahoj dobry den nazdar"]
["pes kocka ahoj maslo voda"]
["stul kocka postel "]
["ahoj cau ahoj dobry den nazdar"]
["pes kocka ahoj maslo voda"]
["stul kocka postel "]
["ahoj cau ahoj dobry den nazdar"]
["pes kocka ahoj maslo voda"]
["stul kocka postel "]
["ahoj cau ahoj dobry den nazdar"]
["pes kocka ahoj maslo voda"]
["stul kocka postel "]
["ahoj cau ahoj dobry den nazdar"]
["pes kocka ahoj maslo voda"]
["stul kocka postel "]
["ahoj cau ahoj dobry den nazdar"]
["pes kocka ahoj maslo voda"]
["stul kocka postel "]
["ahoj cau ahoj dobry den nazdar"]
["pes kocka ahoj maslo voda"]
["stul kocka postel "]
["ahoj cau ahoj dobry den nazdar"]
["pes kocka ahoj maslo voda"]
["stul kocka postel "]
["ahoj cau ahoj dobry den nazdar"]
["pes kocka ahoj maslo voda"]
["stul kocka postel "]
["ahoj cau ahoj dobry den nazdar"]
["pes kocka ahoj maslo voda"]
["stul kocka postel "]
["ahoj cau ahoj dobry den nazdar"]
["pes kocka ahoj maslo voda"]
["stul kocka postel "]
["blbina ahoj"]
["ahoj cau ahoj dobry den nazdar"]
["pes kocka ahoj maslo voda"]
["stul kocka postel "]
["ahoj cau ahoj dobry den nazdar"]
["pes kocka ahoj maslo voda"]
["stul kocka postel "]
["ahoj cau ahoj dobry den nazdar"]
["pes kocka ahoj maslo voda"]
["stul kocka postel "]
["ahoj cau ahoj dobry den nazdar"]
["pes kocka ahoj maslo voda"]
["stul kocka postel "]
["ahoj cau ahoj dobry den nazdar"]
["pes kocka ahoj maslo voda"]
["stul kocka postel "]
["ahoj cau ahoj dobry den nazdar"]
["pes kocka ahoj maslo voda"]
["stul kocka postel "]
["ahoj cau ahoj dobry den nazdar"]
["pes kocka ahoj maslo voda"]
["stul kocka postel "]
["ahoj cau ahoj dobry den nazdar"]
["pes kocka ahoj maslo voda"]
["stul kocka postel "]
["ahoj cau ahoj dobry den nazdar"]
["pes kocka ahoj maslo voda"]
["stul kocka postel "]
["blbina ahoj"]

{"sheet":"FINDER","index":1,"n_rows":62,"n_cols":5,"rows_kept":62,"cut":false,"hidden":false,"merged":[[2,1,2,2]]}
[]
[]
[null,"Enter one or more key words in the cells below"]
[null,"Key word 1","nazdar"]
[null,"Key word 2"]
[null,"Key word 3"]
[null,"Key word 4"]
[null,"Key word 5"]
[]
[]
[]
[null,"Found?","Description",null,"Výpočty sú v Definovaných názvoch"]
[null,{"$f":"IF(SUM(FIND_RESULTS)=0,\"NO\",\"YES\")","v":"YES"},{"$f":"IF($B$13=\"NO\",IF(ROW(A1:A50)=1,\"N/A\",\"\"),IFERROR(INDEX(D_RANGE,SMALL(FIND_INDEXES,ROW(A1:A50))),\"\"))","v":"ahoj cau ahoj dobry den nazdar"},null,"C13:C62 - obmedzené vzorce na 50 riadkov (maticový vzorec poľa)"]
[null,null,"ahoj cau ahoj dobry den nazdar",null,"B13 - pomocou Podmieneného formátovania dá vedieť ak je to viac ako 50"]
[null,null,"ahoj cau ahoj dobry den nazdar"]
[null,null,"ahoj cau ahoj dobry den nazdar"]
[null,null,"ahoj cau ahoj dobry den nazdar"]
[null,null,"ahoj cau ahoj dobry den nazdar"]
[null,null,"ahoj cau ahoj dobry den nazdar"]
[null,null,"ahoj cau ahoj dobry den nazdar"]
[null,null,"ahoj cau ahoj dobry den nazdar"]
[null,null,"ahoj cau ahoj dobry den nazdar"]
[null,null,"ahoj cau ahoj dobry den nazdar"]
[null,null,"ahoj cau ahoj dobry den nazdar"]
[null,null,"ahoj cau ahoj dobry den nazdar"]
[null,null,"ahoj cau ahoj dobry den nazdar"]
[null,null,"ahoj cau ahoj dobry den nazdar"]
[null,null,"ahoj cau ahoj dobry den nazdar"]
[null,null,"ahoj cau ahoj dobry den nazdar"]
[null,null,"ahoj cau ahoj dobry den nazdar"]
[null,null,"ahoj cau ahoj dobry den nazdar"]
[null,null,"ahoj cau ahoj dobry den nazdar"]
[null,null,"ahoj cau ahoj dobry den nazdar"]
[null,null,"ahoj cau ahoj dobry den nazdar"]
[null,null,"ahoj cau ahoj dobry den nazdar"]
[null,null,"ahoj cau ahoj dobry den nazdar"]
[null,null,"ahoj cau ahoj dobry den nazdar"]
[null,null,"ahoj cau ahoj dobry den nazdar"]
[null,null,"ahoj cau ahoj dobry den nazdar"]
[null,null,"ahoj cau ahoj dobry den nazdar"]
[null,null,"ahoj cau ahoj dobry den nazdar"]
[null,null,"ahoj cau ahoj dobry den nazdar"]
[null,null,""]
[null,null,""]
[null,null,""]
[null,null,""]
[null,null,""]
[null,null,""]
[null,null,""]
[null,null,""]
[null,null,""]
[null,null,""]
[null,null,""]
[null,null,""]
[null,null,""]
[null,null,""]
[null,null,""]
[null,null,""]
[null,null,""]
[null,null,""]
[null,null,""]
[null,null,""]

{"sheet":"Tabulka (2)","index":2,"n_rows":93,"n_cols":6,"rows_kept":93,"cut":false,"hidden":false,"merged":[]}
["Description","RES","Number","Other Information"]
["ahoj cau ahoj dobry den nazdar",{"$f":"SUM(NOT(ISBLANK(TRANSPOSE(KEYS_2)))*COUNTIF(A2,\"*\"&TRANSPOSE(KEYS_2)&\"*\"))","v":0},45,"KJ",null,"B:B - pomocný stĺpec"]
["pes kocka ahoj maslo voda",{"$f":"SUM(NOT(ISBLANK(TRANSPOSE(KEYS_2)))*COUNTIF(A3,\"*\"&TRANSPOSE(KEYS_2)&\"*\"))","v":1},889,"JJ"]
["stul kocka postel ",{"$f":"SUM(NOT(ISBLANK(TRANSPOSE(KEYS_2)))*COUNTIF(A4,\"*\"&TRANSPOSE(KEYS_2)&\"*\"))","v":1},541,"AD"]
["ahoj cau ahoj dobry den nazdar",{"$f":"SUM(NOT(ISBLANK(TRANSPOSE(KEYS_2)))*COUNTIF(A5,\"*\"&TRANSPOSE(KEYS_2)&\"*\"))","v":0}]
["pes kocka ahoj maslo voda",{"$f":"SUM(NOT(ISBLANK(TRANSPOSE(KEYS_2)))*COUNTIF(A6,\"*\"&TRANSPOSE(KEYS_2)&\"*\"))","v":1}]
["stul kocka postel ",{"$f":"SUM(NOT(ISBLANK(TRANSPOSE(KEYS_2)))*COUNTIF(A7,\"*\"&TRANSPOSE(KEYS_2)&\"*\"))","v":1}]
["ahoj cau ahoj dobry den nazdar",{"$f":"SUM(NOT(ISBLANK(TRANSPOSE(KEYS_2)))*COUNTIF(A8,\"*\"&TRANSPOSE(KEYS_2)&\"*\"))","v":0}]
["pes kocka ahoj maslo voda",{"$f":"SUM(NOT(ISBLANK(TRANSPOSE(KEYS_2)))*COUNTIF(A9,\"*\"&TRANSPOSE(KEYS_2)&\"*\"))","v":1}]
["stul kocka postel ",{"$f":"SUM(NOT(ISBLANK(TRANSPOSE(KEYS_2)))*COUNTIF(A10,\"*\"&TRANSPOSE(KEYS_2)&\"*\"))","v":1}]
["ahoj cau ahoj dobry den nazdar",{"$f":"SUM(NOT(ISBLANK(TRANSPOSE(KEYS_2)))*COUNTIF(A11,\"*\"&TRANSPOSE(KEYS_2)&\"*\"))","v":0}]
["pes kocka ahoj maslo voda",{"$f":"SUM(NOT(ISBLANK(TRANSPOSE(KEYS_2)))*COUNTIF(A12,\"*\"&TRANSPOSE(KEYS_2)&\"*\"))","v":1}]
["stul kocka postel ",{"$f":"SUM(NOT(ISBLANK(TRANSPOSE(KEYS_2)))*COUNTIF(A13,\"*\"&TRANSPOSE(KEYS_2)&\"*\"))","v":1}]
["ahoj cau ahoj dobry den nazdar",{"$f":"SUM(NOT(ISBLANK(TRANSPOSE(KEYS_2)))*COUNTIF(A14,\"*\"&TRANSPOSE(KEYS_2)&\"*\"))","v":0}]
["pes kocka ahoj maslo voda",{"$f":"SUM(NOT(ISBLANK(TRANSPOSE(KEYS_2)))*COUNTIF(A15,\"*\"&TRANSPOSE(KEYS_2)&\"*\"))","v":1}]
["stul kocka postel ",{"$f":"SUM(NOT(ISBLANK(TRANSPOSE(KEYS_2)))*COUNTIF(A16,\"*\"&TRANSPOSE(KEYS_2)&\"*\"))","v":1}]
["ahoj cau ahoj dobry den nazdar",{"$f":"SUM(NOT(ISBLANK(TRANSPOSE(KEYS_2)))*COUNTIF(A17,\"*\"&TRANSPOSE(KEYS_2)&\"*\"))","v":0}]
["pes kocka ahoj maslo voda",{"$f":"SUM(NOT(ISBLANK(TRANSPOSE(KEYS_2)))*COUNTIF(A18,\"*\"&TRANSPOSE(KEYS_2)&\"*\"))","v":1}]
["stul kocka postel ",{"$f":"SUM(NOT(ISBLANK(TRANSPOSE(KEYS_2)))*COUNTIF(A19,\"*\"&TRANSPOSE(KEYS_2)&\"*\"))","v":1}]
["ahoj cau ahoj dobry den nazdar",{"$f":"SUM(NOT(ISBLANK(TRANSPOSE(KEYS_2)))*COUNTIF(A20,\"*\"&TRANSPOSE(KEYS_2)&\"*\"))","v":0}]
["pes kocka ahoj maslo voda",{"$f":"SUM(NOT(ISBLANK(TRANSPOSE(KEYS_2)))*COUNTIF(A21,\"*\"&TRANSPOSE(KEYS_2)&\"*\"))","v":1}]
["stul kocka postel ",{"$f":"SUM(NOT(ISBLANK(TRANSPOSE(KEYS_2)))*COUNTIF(A22,\"*\"&TRANSPOSE(KEYS_2)&\"*\"))","v":1}]
["ahoj cau ahoj dobry den nazdar",{"$f":"SUM(NOT(ISBLANK(TRANSPOSE(KEYS_2)))*COUNTIF(A23,\"*\"&TRANSPOSE(KEYS_2)&\"*\"))","v":0}]
["pes kocka ahoj maslo voda",{"$f":"SUM(NOT(ISBLANK(TRANSPOSE(KEYS_2)))*COUNTIF(A24,\"*\"&TRANSPOSE(KEYS_2)&\"*\"))","v":1}]
["stul kocka postel ",{"$f":"SUM(NOT(ISBLANK(TRANSPOSE(KEYS_2)))*COUNTIF(A25,\"*\"&TRANSPOSE(KEYS_2)&\"*\"))","v":1}]
["ahoj cau ahoj dobry den nazdar",{"$f":"SUM(NOT(ISBLANK(TRANSPOSE(KEYS_2)))*COUNTIF(A26,\"*\"&TRANSPOSE(KEYS_2)&\"*\"))","v":0}]
["pes kocka ahoj maslo voda",{"$f":"SUM(NOT(ISBLANK(TRANSPOSE(KEYS_2)))*COUNTIF(A27,\"*\"&TRANSPOSE(KEYS_2)&\"*\"))","v":1}]
["stul kocka postel ",{"$f":"SUM(NOT(ISBLANK(TRANSPOSE(KEYS_2)))*COUNTIF(A28,\"*\"&TRANSPOSE(KEYS_2)&\"*\"))","v":1}]
["ahoj cau ahoj dobry den nazdar",{"$f":"SUM(NOT(ISBLANK(TRANSPOSE(KEYS_2)))*COUNTIF(A29,\"*\"&TRANSPOSE(KEYS_2)&\"*\"))","v":0}]
["pes kocka ahoj maslo voda",{"$f":"SUM(NOT(ISBLANK(TRANSPOSE(KEYS_2)))*COUNTIF(A30,\"*\"&TRANSPOSE(KEYS_2)&\"*\"))","v":1}]
["stul kocka postel ",{"$f":"SUM(NOT(ISBLANK(TRANSPOSE(KEYS_2)))*COUNTIF(A31,\"*\"&TRANSPOSE(KEYS_2)&\"*\"))","v":1}]
["ahoj cau ahoj dobry den nazdar",{"$f":"SUM(NOT(ISBLANK(TRANSPOSE(KEYS_2)))*COUNTIF(A32,\"*\"&TRANSPOSE(KEYS_2)&\"*\"))","v":0}]
["pes kocka ahoj maslo voda",{"$f":"SUM(NOT(ISBLANK(TRANSPOSE(KEYS_2)))*COUNTIF(A33,\"*\"&TRANSPOSE(KEYS_2)&\"*\"))","v":1}]
["stul kocka postel ",{"$f":"SUM(NOT(ISBLANK(TRANSPOSE(KEYS_2)))*COUNTIF(A34,\"*\"&TRANSPOSE(KEYS_2)&\"*\"))","v":1}]
["ahoj cau ahoj dobry den nazdar",{"$f":"SUM(NOT(ISBLANK(TRANSPOSE(KEYS_2)))*COUNTIF(A35,\"*\"&TRANSPOSE(KEYS_2)&\"*\"))","v":0}]
["pes kocka ahoj maslo voda",{"$f":"SUM(NOT(ISBLANK(TRANSPOSE(KEYS_2)))*COUNTIF(A36,\"*\"&TRANSPOSE(KEYS_2)&\"*\"))","v":1}]
["stul kocka postel ",{"$f":"SUM(NOT(ISBLANK(TRANSPOSE(KEYS_2)))*COUNTIF(A37,\"*\"&TRANSPOSE(KEYS_2)&\"*\"))","v":1}]
["ahoj cau ahoj dobry den nazdar",{"$f":"SUM(NOT(ISBLANK(TRANSPOSE(KEYS_2)))*COUNTIF(A38,\"*\"&TRANSPOSE(KEYS_2)&\"*\"))","v":0}]
["pes kocka ahoj maslo voda",{"$f":"SUM(NOT(ISBLANK(TRANSPOSE(KEYS_2)))*COUNTIF(A39,\"*\"&TRANSPOSE(KEYS_2)&\"*\"))","v":1}]
["stul kocka postel ",{"$f":"SUM(NOT(ISBLANK(TRANSPOSE(KEYS_2)))*COUNTIF(A40,\"*\"&TRANSPOSE(KEYS_2)&\"*\"))","v":1}]
["ahoj cau ahoj dobry den nazdar",{"$f":"SUM(NOT(ISBLANK(TRANSPOSE(KEYS_2)))*COUNTIF(A41,\"*\"&TRANSPOSE(KEYS_2)&\"*\"))","v":0}]
["pes kocka ahoj maslo voda",{"$f":"SUM(NOT(ISBLANK(TRANSPOSE(KEYS_2)))*COUNTIF(A42,\"*\"&TRANSPOSE(KEYS_2)&\"*\"))","v":1}]
["stul kocka postel ",{"$f":"SUM(NOT(ISBLANK(TRANSPOSE(KEYS_2)))*COUNTIF(A43,\"*\"&TRANSPOSE(KEYS_2)&\"*\"))","v":1}]
["ahoj cau ahoj dobry den nazdar",{"$f":"SUM(NOT(ISBLANK(TRANSPOSE(KEYS_2)))*COUNTIF(A44,\"*\"&TRANSPOSE(KEYS_2)&\"*\"))","v":0}]
["pes kocka ahoj maslo voda",{"$f":"SUM(NOT(ISBLANK(TRANSPOSE(KEYS_2)))*COUNTIF(A45,\"*\"&TRANSPOSE(KEYS_2)&\"*\"))","v":1}]
["stul kocka postel ",{"$f":"SUM(NOT(ISBLANK(TRANSPOSE(KEYS_2)))*COUNTIF(A46,\"*\"&TRANSPOSE(KEYS_2)&\"*\"))","v":1}]
["ahoj cau ahoj dobry den nazdar",{"$f":"SUM(NOT(ISBLANK(TRANSPOSE(KEYS_2)))*COUNTIF(A47,\"*\"&TRANSPOSE(KEYS_2)&\"*\"))","v":0}]
["pes kocka ahoj maslo voda",{"$f":"SUM(NOT(ISBLANK(TRANSPOSE(KEYS_2)))*COUNTIF(A48,\"*\"&TRANSPOSE(KEYS_2)&\"*\"))","v":1}]
["stul kocka postel ",{"$f":"SUM(NOT(ISBLANK(TRANSPOSE(KEYS_2)))*COUNTIF(A49,\"*\"&TRANSPOSE(KEYS_2)&\"*\"))","v":1}]
["ahoj cau ahoj dobry den nazdar",{"$f":"SUM(NOT(ISBLANK(TRANSPOSE(KEYS_2)))*COUNTIF(A50,\"*\"&TRANSPOSE(KEYS_2)&\"*\"))","v":0}]
["pes kocka ahoj maslo voda",{"$f":"SUM(NOT(ISBLANK(TRANSPOSE(KEYS_2)))*COUNTIF(A51,\"*\"&TRANSPOSE(KEYS_2)&\"*\"))","v":1}]
["stul kocka postel ",{"$f":"SUM(NOT(ISBLANK(TRANSPOSE(KEYS_2)))*COUNTIF(A52,\"*\"&TRANSPOSE(KEYS_2)&\"*\"))","v":1}]
["ahoj cau ahoj dobry den nazdar",{"$f":"SUM(NOT(ISBLANK(TRANSPOSE(KEYS_2)))*COUNTIF(A53,\"*\"&TRANSPOSE(KEYS_2)&\"*\"))","v":0}]
["pes kocka ahoj maslo voda",{"$f":"SUM(NOT(ISBLANK(TRANSPOSE(KEYS_2)))*COUNTIF(A54,\"*\"&TRANSPOSE(KEYS_2)&\"*\"))","v":1}]
["stul kocka postel ",{"$f":"SUM(NOT(ISBLANK(TRANSPOSE(KEYS_2)))*COUNTIF(A55,\"*\"&TRANSPOSE(KEYS_2)&\"*\"))","v":1}]
["ahoj cau ahoj dobry den nazdar",{"$f":"SUM(NOT(ISBLANK(TRANSPOSE(KEYS_2)))*COUNTIF(A56,\"*\"&TRANSPOSE(KEYS_2)&\"*\"))","v":0}]
["pes kocka ahoj maslo voda",{"$f":"SUM(NOT(ISBLANK(TRANSPOSE(KEYS_2)))*COUNTIF(A57,\"*\"&TRANSPOSE(KEYS_2)&\"*\"))","v":1}]
["stul kocka postel ",{"$f":"SUM(NOT(ISBLANK(TRANSPOSE(KEYS_2)))*COUNTIF(A58,\"*\"&TRANSPOSE(KEYS_2)&\"*\"))","v":1}]
["ahoj cau ahoj dobry den nazdar",{"$f":"SUM(NOT(ISBLANK(TRANSPOSE(KEYS_2)))*COUNTIF(A59,\"*\"&TRANSPOSE(KEYS_2)&\"*\"))","v":0}]
["pes kocka ahoj maslo voda",{"$f":"SUM(NOT(ISBLANK(TRANSPOSE(KEYS_2)))*COUNTIF(A60,\"*\"&TRANSPOSE(KEYS_2)&\"*\"))","v":1}]
["stul kocka postel ",{"$f":"SUM(NOT(ISBLANK(TRANSPOSE(KEYS_2)))*COUNTIF(A61,\"*\"&TRANSPOSE(KEYS_2)&\"*\"))","v":1}]
["ahoj cau ahoj dobry den nazdar",{"$f":"SUM(NOT(ISBLANK(TRANSPOSE(KEYS_2)))*COUNTIF(A62,\"*\"&TRANSPOSE(KEYS_2)&\"*\"))","v":0}]
["pes kocka ahoj maslo voda",{"$f":"SUM(NOT(ISBLANK(TRANSPOSE(KEYS_2)))*COUNTIF(A63,\"*\"&TRANSPOSE(KEYS_2)&\"*\"))","v":1}]
["stul kocka postel ",{"$f":"SUM(NOT(ISBLANK(TRANSPOSE(KEYS_2)))*COUNTIF(A64,\"*\"&TRANSPOSE(KEYS_2)&\"*\"))","v":1}]
["blbina ahoj",{"$f":"SUM(NOT(ISBLANK(TRANSPOSE(KEYS_2)))*COUNTIF(A65,\"*\"&TRANSPOSE(KEYS_2)&\"*\"))","v":0}]
["ahoj cau ahoj dobry den nazdar",{"$f":"SUM(NOT(ISBLANK(TRANSPOSE(KEYS_2)))*COUNTIF(A66,\"*\"&TRANSPOSE(KEYS_2)&\"*\"))","v":0}]
["pes kocka ahoj maslo voda",{"$f":"SUM(NOT(ISBLANK(TRANSPOSE(KEYS_2)))*COUNTIF(A67,\"*\"&TRANSPOSE(KEYS_2)&\"*\"))","v":1}]
["stul kocka postel ",{"$f":"SUM(NOT(ISBLANK(TRANSPOSE(KEYS_2)))*COUNTIF(A68,\"*\"&TRANSPOSE(KEYS_2)&\"*\"))","v":1}]
["ahoj cau ahoj dobry den nazdar",{"$f":"SUM(NOT(ISBLANK(TRANSPOSE(KEYS_2)))*COUNTIF(A69,\"*\"&TRANSPOSE(KEYS_2)&\"*\"))","v":0}]
["pes kocka ahoj maslo voda",{"$f":"SUM(NOT(ISBLANK(TRANSPOSE(KEYS_2)))*COUNTIF(A70,\"*\"&TRANSPOSE(KEYS_2)&\"*\"))","v":1}]
["stul kocka postel ",{"$f":"SUM(NOT(ISBLANK(TRANSPOSE(KEYS_2)))*COUNTIF(A71,\"*\"&TRANSPOSE(KEYS_2)&\"*\"))","v":1}]
["ahoj cau ahoj dobry den nazdar",{"$f":"SUM(NOT(ISBLANK(TRANSPOSE(KEYS_2)))*COUNTIF(A72,\"*\"&TRANSPOSE(KEYS_2)&\"*\"))","v":0}]
["pes kocka ahoj maslo voda",{"$f":"SUM(NOT(ISBLANK(TRANSPOSE(KEYS_2)))*COUNTIF(A73,\"*\"&TRANSPOSE(KEYS_2)&\"*\"))","v":1}]
["stul kocka postel ",{"$f":"SUM(NOT(ISBLANK(TRANSPOSE(KEYS_2)))*COUNTIF(A74,\"*\"&TRANSPOSE(KEYS_2)&\"*\"))","v":1}]
["ahoj cau ahoj dobry den nazdar",{"$f":"SUM(NOT(ISBLANK(TRANSPOSE(KEYS_2)))*COUNTIF(A75,\"*\"&TRANSPOSE(KEYS_2)&\"*\"))","v":0}]
["pes kocka ahoj maslo voda",{"$f":"SUM(NOT(ISBLANK(TRANSPOSE(KEYS_2)))*COUNTIF(A76,\"*\"&TRANSPOSE(KEYS_2)&\"*\"))","v":1}]
["stul kocka postel ",{"$f":"SUM(NOT(ISBLANK(TRANSPOSE(KEYS_2)))*COUNTIF(A77,\"*\"&TRANSPOSE(KEYS_2)&\"*\"))","v":1}]
["ahoj cau ahoj dobry den nazdar",{"$f":"SUM(NOT(ISBLANK(TRANSPOSE(KEYS_2)))*COUNTIF(A78,\"*\"&TRANSPOSE(KEYS_2)&\"*\"))","v":0}]
["pes kocka ahoj maslo voda",{"$f":"SUM(NOT(ISBLANK(TRANSPOSE(KEYS_2)))*COUNTIF(A79,\"*\"&TRANSPOSE(KEYS_2)&\"*\"))","v":1}]
["stul kocka postel ",{"$f":"SUM(NOT(ISBLANK(TRANSPOSE(KEYS_2)))*COUNTIF(A80,\"*\"&TRANSPOSE(KEYS_2)&\"*\"))","v":1}]
["ahoj cau ahoj dobry den nazdar",{"$f":"SUM(NOT(ISBLANK(TRANSPOSE(KEYS_2)))*COUNTIF(A81,\"*\"&TRANSPOSE(KEYS_2)&\"*\"))","v":0}]
["pes kocka ahoj maslo voda",{"$f":"SUM(NOT(ISBLANK(TRANSPOSE(KEYS_2)))*COUNTIF(A82,\"*\"&TRANSPOSE(KEYS_2)&\"*\"))","v":1}]
["stul kocka postel ",{"$f":"SUM(NOT(ISBLANK(TRANSPOSE(KEYS_2)))*COUNTIF(A83,\"*\"&TRANSPOSE(KEYS_2)&\"*\"))","v":1}]
["ahoj cau ahoj dobry den nazdar",{"$f":"SUM(NOT(ISBLANK(TRANSPOSE(KEYS_2)))*COUNTIF(A84,\"*\"&TRANSPOSE(KEYS_2)&\"*\"))","v":0}]
["pes kocka ahoj maslo voda",{"$f":"SUM(NOT(ISBLANK(TRANSPOSE(KEYS_2)))*COUNTIF(A85,\"*\"&TRANSPOSE(KEYS_2)&\"*\"))","v":1}]
["stul kocka postel ",{"$f":"SUM(NOT(ISBLANK(TRANSPOSE(KEYS_2)))*COUNTIF(A86,\"*\"&TRANSPOSE(KEYS_2)&\"*\"))","v":1}]
["ahoj cau ahoj dobry den nazdar",{"$f":"SUM(NOT(ISBLANK(TRANSPOSE(KEYS_2)))*COUNTIF(A87,\"*\"&TRANSPOSE(KEYS_2)&\"*\"))","v":0}]
["pes kocka ahoj maslo voda",{"$f":"SUM(NOT(ISBLANK(TRANSPOSE(KEYS_2)))*COUNTIF(A88,\"*\"&TRANSPOSE(KEYS_2)&\"*\"))","v":1}]
["stul kocka postel ",{"$f":"SUM(NOT(ISBLANK(TRANSPOSE(KEYS_2)))*COUNTIF(A89,\"*\"&TRANSPOSE(KEYS_2)&\"*\"))","v":1}]
["ahoj cau ahoj dobry den nazdar",{"$f":"SUM(NOT(ISBLANK(TRANSPOSE(KEYS_2)))*COUNTIF(A90,\"*\"&TRANSPOSE(KEYS_2)&\"*\"))","v":0}]
["pes kocka ahoj maslo voda",{"$f":"SUM(NOT(ISBLANK(TRANSPOSE(KEYS_2)))*COUNTIF(A91,\"*\"&TRANSPOSE(KEYS_2)&\"*\"))","v":1}]
["stul kocka postel ",{"$f":"SUM(NOT(ISBLANK(TRANSPOSE(KEYS_2)))*COUNTIF(A92,\"*\"&TRANSPOSE(KEYS_2)&\"*\"))","v":1}]
["blbina ahoj",{"$f":"SUM(NOT(ISBLANK(TRANSPOSE(KEYS_2)))*COUNTIF(A93,\"*\"&TRANSPOSE(KEYS_2)&\"*\"))","v":0}]

{"sheet":"FINDER (2)","index":3,"n_rows":62,"n_cols":5,"rows_kept":62,"cut":false,"hidden":false,"merged":[[2,1,2,2]]}
[]
[]
[null,"Enter one or more key words in the cells below"]
[null,"Key word 1","p"]
[null,"Key word 2"]
[null,"Key word 3"]
[null,"Key word 4"]
[null,"Key word 5"]
[]
[]
[]
[null,"Found?","Description",null,"Výpočty sú v Definovaných názvoch"]
[null,{"$f":"IF(SUM(FIND_RESULTS_2)=0,\"NO\",\"YES\")","v":"YES"},{"$f":"IF($B$13=\"NO\",IF(ROW(A1)=1,\"N/A\",\"\"),IFERROR(INDEX(D_RANGE_2,SMALL(FIND_INDEXES_2,ROW(A1))),\"\"))","v":"pes kocka ahoj maslo voda"},null,"C13:C62 - obmedzené vzorce na 50 riadkov"]
[null,null,{"$f":"IF($B$13=\"NO\",IF(ROW(A2)=1,\"N/A\",\"\"),IFERROR(INDEX(D_RANGE_2,SMALL(FIND_INDEXES_2,ROW(A2))),\"\"))","v":"stul kocka postel "},null,"B13 - pomocou Podmieneného formátovania dá vedieť ak je to viac ako 50"]
[null,null,{"$f":"IF($B$13=\"NO\",IF(ROW(A3)=1,\"N/A\",\"\"),IFERROR(INDEX(D_RANGE_2,SMALL(FIND_INDEXES_2,ROW(A3))),\"\"))","v":"pes kocka ahoj maslo voda"}]
[null,null,{"$f":"IF($B$13=\"NO\",IF(ROW(A4)=1,\"N/A\",\"\"),IFERROR(INDEX(D_RANGE_2,SMALL(FIND_INDEXES_2,ROW(A4))),\"\"))","v":"stul kocka postel "}]
[null,null,{"$f":"IF($B$13=\"NO\",IF(ROW(A5)=1,\"N/A\",\"\"),IFERROR(INDEX(D_RANGE_2,SMALL(FIND_INDEXES_2,ROW(A5))),\"\"))","v":"pes kocka ahoj maslo voda"}]
[null,null,{"$f":"IF($B$13=\"NO\",IF(ROW(A6)=1,\"N/A\",\"\"),IFERROR(INDEX(D_RANGE_2,SMALL(FIND_INDEXES_2,ROW(A6))),\"\"))","v":"stul kocka postel "}]
[null,null,{"$f":"IF($B$13=\"NO\",IF(ROW(A7)=1,\"N/A\",\"\"),IFERROR(INDEX(D_RANGE_2,SMALL(FIND_INDEXES_2,ROW(A7))),\"\"))","v":"pes kocka ahoj maslo voda"}]
[null,null,{"$f":"IF($B$13=\"NO\",IF(ROW(A8)=1,\"N/A\",\"\"),IFERROR(INDEX(D_RANGE_2,SMALL(FIND_INDEXES_2,ROW(A8))),\"\"))","v":"stul kocka postel "}]
[null,null,{"$f":"IF($B$13=\"NO\",IF(ROW(A9)=1,\"N/A\",\"\"),IFERROR(INDEX(D_RANGE_2,SMALL(FIND_INDEXES_2,ROW(A9))),\"\"))","v":"pes kocka ahoj maslo voda"}]
[null,null,{"$f":"IF($B$13=\"NO\",IF(ROW(A10)=1,\"N/A\",\"\"),IFERROR(INDEX(D_RANGE_2,SMALL(FIND_INDEXES_2,ROW(A10))),\"\"))","v":"stul kocka postel "}]
[null,null,{"$f":"IF($B$13=\"NO\",IF(ROW(A11)=1,\"N/A\",\"\"),IFERROR(INDEX(D_RANGE_2,SMALL(FIND_INDEXES_2,ROW(A11))),\"\"))","v":"pes kocka ahoj maslo voda"}]
[null,null,{"$f":"IF($B$13=\"NO\",IF(ROW(A12)=1,\"N/A\",\"\"),IFERROR(INDEX(D_RANGE_2,SMALL(FIND_INDEXES_2,ROW(A12))),\"\"))","v":"stul kocka postel "}]
[null,null,{"$f":"IF($B$13=\"NO\",IF(ROW(A13)=1,\"N/A\",\"\"),IFERROR(INDEX(D_RANGE_2,SMALL(FIND_INDEXES_2,ROW(A13))),\"\"))","v":"pes kocka ahoj maslo voda"}]
[null,null,{"$f":"IF($B$13=\"NO\",IF(ROW(A14)=1,\"N/A\",\"\"),IFERROR(INDEX(D_RANGE_2,SMALL(FIND_INDEXES_2,ROW(A14))),\"\"))","v":"stul kocka postel "}]
[null,null,{"$f":"IF($B$13=\"NO\",IF(ROW(A15)=1,\"N/A\",\"\"),IFERROR(INDEX(D_RANGE_2,SMALL(FIND_INDEXES_2,ROW(A15))),\"\"))","v":"pes kocka ahoj maslo voda"}]
[null,null,{"$f":"IF($B$13=\"NO\",IF(ROW(A16)=1,\"N/A\",\"\"),IFERROR(INDEX(D_RANGE_2,SMALL(FIND_INDEXES_2,ROW(A16))),\"\"))","v":"stul kocka postel "}]
[null,null,{"$f":"IF($B$13=\"NO\",IF(ROW(A17)=1,\"N/A\",\"\"),IFERROR(INDEX(D_RANGE_2,SMALL(FIND_INDEXES_2,ROW(A17))),\"\"))","v":"pes kocka ahoj maslo voda"}]
[null,null,{"$f":"IF($B$13=\"NO\",IF(ROW(A18)=1,\"N/A\",\"\"),IFERROR(INDEX(D_RANGE_2,SMALL(FIND_INDEXES_2,ROW(A18))),\"\"))","v":"stul kocka postel "}]
[null,null,{"$f":"IF($B$13=\"NO\",IF(ROW(A19)=1,\"N/A\",\"\"),IFERROR(INDEX(D_RANGE_2,SMALL(FIND_INDEXES_2,ROW(A19))),\"\"))","v":"pes kocka ahoj maslo voda"}]
[null,null,{"$f":"IF($B$13=\"NO\",IF(ROW(A20)=1,\"N/A\",\"\"),IFERROR(INDEX(D_RANGE_2,SMALL(FIND_INDEXES_2,ROW(A20))),\"\"))","v":"stul kocka postel "}]
[null,null,{"$f":"IF($B$13=\"NO\",IF(ROW(A21)=1,\"N/A\",\"\"),IFERROR(INDEX(D_RANGE_2,SMALL(FIND_INDEXES_2,ROW(A21))),\"\"))","v":"pes kocka ahoj maslo voda"}]
[null,null,{"$f":"IF($B$13=\"NO\",IF(ROW(A22)=1,\"N/A\",\"\"),IFERROR(INDEX(D_RANGE_2,SMALL(FIND_INDEXES_2,ROW(A22))),\"\"))","v":"stul kocka postel "}]
[null,null,{"$f":"IF($B$13=\"NO\",IF(ROW(A23)=1,\"N/A\",\"\"),IFERROR(INDEX(D_RANGE_2,SMALL(FIND_INDEXES_2,ROW(A23))),\"\"))","v":"pes kocka ahoj maslo voda"}]
[null,null,{"$f":"IF($B$13=\"NO\",IF(ROW(A24)=1,\"N/A\",\"\"),IFERROR(INDEX(D_RANGE_2,SMALL(FIND_INDEXES_2,ROW(A24))),\"\"))","v":"stul kocka postel "}]
[null,null,{"$f":"IF($B$13=\"NO\",IF(ROW(A25)=1,\"N/A\",\"\"),IFERROR(INDEX(D_RANGE_2,SMALL(FIND_INDEXES_2,ROW(A25))),\"\"))","v":"pes kocka ahoj maslo voda"}]
[null,null,{"$f":"IF($B$13=\"NO\",IF(ROW(A26)=1,\"N/A\",\"\"),IFERROR(INDEX(D_RANGE_2,SMALL(FIND_INDEXES_2,ROW(A26))),\"\"))","v":"stul kocka postel "}]
[null,null,{"$f":"IF($B$13=\"NO\",IF(ROW(A27)=1,\"N/A\",\"\"),IFERROR(INDEX(D_RANGE_2,SMALL(FIND_INDEXES_2,ROW(A27))),\"\"))","v":"pes kocka ahoj maslo voda"}]
[null,null,{"$f":"IF($B$13=\"NO\",IF(ROW(A28)=1,\"N/A\",\"\"),IFERROR(INDEX(D_RANGE_2,SMALL(FIND_INDEXES_2,ROW(A28))),\"\"))","v":"stul kocka postel "}]
[null,null,{"$f":"IF($B$13=\"NO\",IF(ROW(A29)=1,\"N/A\",\"\"),IFERROR(INDEX(D_RANGE_2,SMALL(FIND_INDEXES_2,ROW(A29))),\"\"))","v":"pes kocka ahoj maslo voda"}]
[null,null,{"$f":"IF($B$13=\"NO\",IF(ROW(A30)=1,\"N/A\",\"\"),IFERROR(INDEX(D_RANGE_2,SMALL(FIND_INDEXES_2,ROW(A30))),\"\"))","v":"stul kocka postel "}]
[null,null,{"$f":"IF($B$13=\"NO\",IF(ROW(A31)=1,\"N/A\",\"\"),IFERROR(INDEX(D_RANGE_2,SMALL(FIND_INDEXES_2,ROW(A31))),\"\"))","v":"pes kocka ahoj maslo voda"}]
[null,null,{"$f":"IF($B$13=\"NO\",IF(ROW(A32)=1,\"N/A\",\"\"),IFERROR(INDEX(D_RANGE_2,SMALL(FIND_INDEXES_2,ROW(A32))),\"\"))","v":"stul kocka postel "}]
[null,null,{"$f":"IF($B$13=\"NO\",IF(ROW(A33)=1,\"N/A\",\"\"),IFERROR(INDEX(D_RANGE_2,SMALL(FIND_INDEXES_2,ROW(A33))),\"\"))","v":"pes kocka ahoj maslo voda"}]
[null,null,{"$f":"IF($B$13=\"NO\",IF(ROW(A34)=1,\"N/A\",\"\"),IFERROR(INDEX(D_RANGE_2,SMALL(FIND_INDEXES_2,ROW(A34))),\"\"))","v":"stul kocka postel "}]
[null,null,{"$f":"IF($B$13=\"NO\",IF(ROW(A35)=1,\"N/A\",\"\"),IFERROR(INDEX(D_RANGE_2,SMALL(FIND_INDEXES_2,ROW(A35))),\"\"))","v":"pes kocka ahoj maslo voda"}]
[null,null,{"$f":"IF($B$13=\"NO\",IF(ROW(A36)=1,\"N/A\",\"\"),IFERROR(INDEX(D_RANGE_2,SMALL(FIND_INDEXES_2,ROW(A36))),\"\"))","v":"stul kocka postel "}]
[null,null,{"$f":"IF($B$13=\"NO\",IF(ROW(A37)=1,\"N/A\",\"\"),IFERROR(INDEX(D_RANGE_2,SMALL(FIND_INDEXES_2,ROW(A37))),\"\"))","v":"pes kocka ahoj maslo voda"}]
[null,null,{"$f":"IF($B$13=\"NO\",IF(ROW(A38)=1,\"N/A\",\"\"),IFERROR(INDEX(D_RANGE_2,SMALL(FIND_INDEXES_2,ROW(A38))),\"\"))","v":"stul kocka postel "}]
[null,null,{"$f":"IF($B$13=\"NO\",IF(ROW(A39)=1,\"N/A\",\"\"),IFERROR(INDEX(D_RANGE_2,SMALL(FIND_INDEXES_2,ROW(A39))),\"\"))","v":"pes kocka ahoj maslo voda"}]
[null,null,{"$f":"IF($B$13=\"NO\",IF(ROW(A40)=1,\"N/A\",\"\"),IFERROR(INDEX(D_RANGE_2,SMALL(FIND_INDEXES_2,ROW(A40))),\"\"))","v":"stul kocka postel "}]
[null,null,{"$f":"IF($B$13=\"NO\",IF(ROW(A41)=1,\"N/A\",\"\"),IFERROR(INDEX(D_RANGE_2,SMALL(FIND_INDEXES_2,ROW(A41))),\"\"))","v":"pes kocka ahoj maslo voda"}]
[null,null,{"$f":"IF($B$13=\"NO\",IF(ROW(A42)=1,\"N/A\",\"\"),IFERROR(INDEX(D_RANGE_2,SMALL(FIND_INDEXES_2,ROW(A42))),\"\"))","v":"stul kocka postel "}]
[null,null,{"$f":"IF($B$13=\"NO\",IF(ROW(A43)=1,\"N/A\",\"\"),IFERROR(INDEX(D_RANGE_2,SMALL(FIND_INDEXES_2,ROW(A43))),\"\"))","v":"pes kocka ahoj maslo voda"}]
[null,null,{"$f":"IF($B$13=\"NO\",IF(ROW(A44)=1,\"N/A\",\"\"),IFERROR(INDEX(D_RANGE_2,SMALL(FIND_INDEXES_2,ROW(A44))),\"\"))","v":"stul kocka postel "}]
[null,null,{"$f":"IF($B$13=\"NO\",IF(ROW(A45)=1,\"N/A\",\"\"),IFERROR(INDEX(D_RANGE_2,SMALL(FIND_INDEXES_2,ROW(A45))),\"\"))","v":"pes kocka ahoj maslo voda"}]
[null,null,{"$f":"IF($B$13=\"NO\",IF(ROW(A46)=1,\"N/A\",\"\"),IFERROR(INDEX(D_RANGE_2,SMALL(FIND_INDEXES_2,ROW(A46))),\"\"))","v":"stul kocka postel "}]
[null,null,{"$f":"IF($B$13=\"NO\",IF(ROW(A47)=1,\"N/A\",\"\"),IFERROR(INDEX(D_RANGE_2,SMALL(FIND_INDEXES_2,ROW(A47))),\"\"))","v":"pes kocka ahoj maslo voda"}]
[null,null,{"$f":"IF($B$13=\"NO\",IF(ROW(A48)=1,\"N/A\",\"\"),IFERROR(INDEX(D_RANGE_2,SMALL(FIND_INDEXES_2,ROW(A48))),\"\"))","v":"stul kocka postel "}]
[null,null,{"$f":"IF($B$13=\"NO\",IF(ROW(A49)=1,\"N/A\",\"\"),IFERROR(INDEX(D_RANGE_2,SMALL(FIND_INDEXES_2,ROW(A49))),\"\"))","v":"pes kocka ahoj maslo voda"}]
[null,null,{"$f":"IF($B$13=\"NO\",IF(ROW(A50)=1,\"N/A\",\"\"),IFERROR(INDEX(D_RANGE_2,SMALL(FIND_INDEXES_2,ROW(A50))),\"\"))","v":"stul kocka postel "}]

{"sheet":"Tabulka (3)","index":4,"n_rows":93,"n_cols":3,"rows_kept":93,"cut":false,"hidden":false,"merged":[]}
["Description","Number","Other Information"]
["ahoj cau ahoj dobry den nazdar",45,"KJ"]
["pes kocka ahoj maslo voda",889,"JJ"]
["stul kocka postel ",541,"AD"]
["ahoj cau ahoj dobry den nazdar"]
["pes kocka ahoj maslo voda"]
["stul kocka postel "]
["ahoj cau ahoj dobry den nazdar"]
["pes kocka ahoj maslo voda"]
["stul kocka postel "]
["ahoj cau ahoj dobry den nazdar"]
["pes kocka ahoj maslo voda"]
["stul kocka postel "]
["ahoj cau ahoj dobry den nazdar"]
["pes kocka ahoj maslo voda"]
["stul kocka postel "]
["ahoj cau ahoj dobry den nazdar"]
["pes kocka ahoj maslo voda"]
["stul kocka postel "]
["ahoj cau ahoj dobry den nazdar"]
["pes kocka ahoj maslo voda"]
["stul kocka postel "]
["ahoj cau ahoj dobry den nazdar"]
["pes kocka ahoj maslo voda"]
["stul kocka postel "]
["ahoj cau ahoj dobry den nazdar"]
["pes kocka ahoj maslo voda"]
["stul kocka postel "]
["ahoj cau ahoj dobry den nazdar"]
["pes kocka ahoj maslo voda"]
["stul kocka postel "]
["ahoj cau ahoj dobry den nazdar"]
["pes kocka ahoj maslo voda"]
["stul kocka postel "]
["ahoj cau ahoj dobry den nazdar"]
["pes kocka ahoj maslo voda"]
["stul kocka postel "]
["ahoj cau ahoj dobry den nazdar"]
["pes kocka ahoj maslo voda"]
["stul kocka postel "]
["ahoj cau ahoj dobry den nazdar"]
["pes kocka ahoj maslo voda"]
["stul kocka postel "]
["ahoj cau ahoj dobry den nazdar"]
["pes kocka ahoj maslo voda"]
["stul kocka postel "]
["ahoj cau ahoj dobry den nazdar"]
["pes kocka ahoj maslo voda"]
["stul kocka postel "]
["ahoj cau ahoj dobry den nazdar"]
["pes kocka ahoj maslo voda"]
["stul kocka postel "]
["ahoj cau ahoj dobry den nazdar"]
["pes kocka ahoj maslo voda"]
["stul kocka postel "]
["ahoj cau ahoj dobry den nazdar"]
["pes kocka ahoj maslo voda"]
["stul kocka postel "]
["ahoj cau ahoj dobry den nazdar"]
["pes kocka ahoj maslo voda"]
["stul kocka postel "]
["ahoj cau ahoj dobry den nazdar"]
["pes kocka ahoj maslo voda"]
["stul kocka postel "]
["blbina ahoj"]
["ahoj cau ahoj dobry den nazdar"]
["pes kocka ahoj maslo voda"]
["stul kocka postel "]
["ahoj cau ahoj dobry den nazdar"]
["pes kocka ahoj maslo voda"]
["stul kocka postel "]
["ahoj cau ahoj dobry den nazdar"]
["pes kocka ahoj maslo voda"]
["stul kocka postel "]
["ahoj cau ahoj dobry den nazdar"]
["pes kocka ahoj maslo voda"]
["stul kocka postel "]
["ahoj cau ahoj dobry den nazdar"]
["pes kocka ahoj maslo voda"]
["stul kocka postel "]
["ahoj cau ahoj dobry den nazdar"]
["pes kocka ahoj maslo voda"]
["stul kocka postel "]
["ahoj cau ahoj dobry den nazdar"]
["pes kocka ahoj maslo voda"]
["stul kocka postel "]
["ahoj cau ahoj dobry den nazdar"]
["pes kocka ahoj maslo voda"]
["stul kocka postel "]
["ahoj cau ahoj dobry den nazdar"]
["pes kocka ahoj maslo voda"]
["stul kocka postel "]
["blbina ahoj"]

{"sheet":"FINDER (3)","index":5,"n_rows":14,"n_cols":11,"rows_kept":14,"cut":false,"hidden":false,"merged":[[2,1,2,2]]}
[]
[]
[null,"Enter one or more key words in the cells below",null,null,"Description","Description","Description","Description","Description",null,"E3:I8 - vypočítavané kritécia"]
[null,"Key word 1",null,null,{"$f":"IFERROR(\"*\"&INDEX($C$4:$C$8,SMALL(IF($C$4:$C$8<>\"\",ROW($C$4:$C$8)-3),ROW($A1)))&\"*\",\"\")","v":"*blbina*"}]
[null,"Key word 2",null,null,null,{"$f":"IFERROR(\"*\"&INDEX($C$4:$C$8,SMALL(IF($C$4:$C$8<>\"\",ROW($C$4:$C$8)-3),ROW($A2)))&\"*\",\"\")","v":""}]
[null,"Key word 3","blbina",null,null,null,{"$f":"IFERROR(\"*\"&INDEX($C$4:$C$8,SMALL(IF($C$4:$C$8<>\"\",ROW($C$4:$C$8)-3),ROW($A3)))&\"*\",\"\")","v":""}]
[null,"Key word 4",null,null,null,null,null,{"$f":"IFERROR(\"*\"&INDEX($C$4:$C$8,SMALL(IF($C$4:$C$8<>\"\",ROW($C$4:$C$8)-3),ROW($A4)))&\"*\",\"\")","v":""}]
[null,"Key word 5",null,null,null,null,null,null,{"$f":"IFERROR(\"*\"&INDEX($C$4:$C$8,SMALL(IF($C$4:$C$8<>\"\",ROW($C$4:$C$8)-3),ROW($A5)))&\"*\",\"\")","v":""}]
[]
[]
[]
[null,"Found?","Description",null,null,null,null,null,null,null,"C13-> makrom sa použije Rozšírený filter"]
[null,"YES","blbina ahoj"]
[null,null,"blbina ahoj"]